[Event "Titled Tuesday Blitz February 28 Late 2023"]
[White "Costachi, Mihnea"]
[Black "Livaic, Leon"]
[WhiteFideId "1217518"]
[BlackFideId "14531534"]
[WhiteElo "2456"]
[BlackElo "2509"]
[Result "0-1"]
[Round "09"]
[TimeControl "180+2"]
[Date "2023.02.28"]
[WhiteClock "0:00:04"]
[BlackClock "0:00:23"]

1. Nc3 {[%clk 0:03:00]}  d5 {[%clk 0:02:59]} 2. d4 {[%clk 0:02:59]}  c6 {[%clk 0:02:58]} 3. Bf4 {[%clk 0:02:59]}  Bf5 {[%clk 0:02:57]} 4. e3 {[%clk 0:02:59]}  e6 {[%clk 0:02:57]} 5. Bd3 {[%clk 0:02:59]}  Bg6 {[%clk 0:02:54]} 6. Nf3 {[%clk 0:02:57]}  Nd7 {[%clk 0:02:53]} 7. O-O {[%clk 0:02:57]}  Ngf6 {[%clk 0:02:52]} 8. Qe2 {[%clk 0:02:55]}  Bb4 {[%clk 0:02:51]} 9. Nb1 {[%clk 0:02:40]}  O-O {[%clk 0:02:50]} 10. Nbd2 {[%clk 0:02:39]}  Re8 {[%clk 0:02:31]} 11. c3 {[%clk 0:02:38]}  Bf8 {[%clk 0:02:28]} 12. Bxg6 {[%clk 0:02:35]}  hxg6 {[%clk 0:02:28]} 13. e4 {[%clk 0:02:35]}  dxe4 {[%clk 0:02:24]} 14. Nxe4 {[%clk 0:02:35]}  Nxe4 {[%clk 0:02:24]} 15. Qxe4 {[%clk 0:02:34]}  Nf6 {[%clk 0:02:24]} 16. Qe2 {[%clk 0:02:31]}  Qd5 {[%clk 0:02:23]} 17. Rfe1 {[%clk 0:02:25]}  a5 {[%clk 0:02:19]} 18. h3 {[%clk 0:02:21]}  a4 {[%clk 0:02:19]} 19. c4 {[%clk 0:02:09]}  Qf5 {[%clk 0:02:18]} 20. Bh2 {[%clk 0:02:01]}  Bb4 {[%clk 0:02:16]} 21. Red1 {[%clk 0:02:00]}  a3 {[%clk 0:02:11]} 22. bxa3 {[%clk 0:01:54]}  Bxa3 {[%clk 0:02:09]} 23. Rab1 {[%clk 0:01:54]}  Ra7 {[%clk 0:02:01]} 24. Rb3 {[%clk 0:01:44]}  Bf8 {[%clk 0:01:48]} 25. Rdb1 {[%clk 0:01:36]}  Rea8 {[%clk 0:01:47]} 26. Rxb7 {[%clk 0:01:35]}  Rxa2 {[%clk 0:01:47]} 27. Qe5 {[%clk 0:01:22]}  Ne4 {[%clk 0:01:35]} 28. Qxf5 {[%clk 0:01:19]}  gxf5 {[%clk 0:01:36]} 29. Bg3 {[%clk 0:01:12]}  g5 {[%clk 0:01:20]} 30. Re1 {[%clk 0:00:50]}  Ra1 {[%clk 0:01:10]} 31. Rbb1 {[%clk 0:00:45]}  Rxb1 {[%clk 0:01:10]} 32. Rxb1 {[%clk 0:00:46]}  f4 {[%clk 0:01:10]} 33. Bh2 {[%clk 0:00:36]}  Ra2 {[%clk 0:01:10]} 34. Rf1 {[%clk 0:00:28]}  Rc2 {[%clk 0:00:55]} 35. c5 {[%clk 0:00:25]}  Bg7 {[%clk 0:00:51]} 36. g3 {[%clk 0:00:25]}  fxg3 {[%clk 0:00:48]} 37. Bxg3 {[%clk 0:00:26]}  Rc3 {[%clk 0:00:38]} 38. Kg2 {[%clk 0:00:04]}  Rxf3 {[%clk 0:00:39]} 39. Kxf3 {[%clk 0:00:05]}  Nd2+ {[%clk 0:00:39]} 40. Ke2 {[%clk 0:00:06]}  Nxf1 {[%clk 0:00:40]} 41. Kxf1 {[%clk 0:00:07]}  Bxd4 {[%clk 0:00:40]} 42. Bd6 {[%clk 0:00:08]}  f5 {[%clk 0:00:36]} 43. f3 {[%clk 0:00:07]}  Kf7 {[%clk 0:00:36]} 44. Ke2 {[%clk 0:00:08]}  Bf6 {[%clk 0:00:30]} 45. Bg3 {[%clk 0:00:05]}  Be7 {[%clk 0:00:30]} 46. Bf2 {[%clk 0:00:06]}  Kf6 {[%clk 0:00:27]} 47. Bd4+ {[%clk 0:00:02]}  e5 {[%clk 0:00:27]} 48. Bf2 {[%clk 0:00:02]}  Ke6 {[%clk 0:00:28]} 49. Kd3 {[%clk 0:00:01]}  Kd5 {[%clk 0:00:28]} 50. Be3 {[%clk 0:00:01]}  f4 {[%clk 0:00:23]} 51. Bd2 {[%clk 0:00:02]}  Bxc5 {[%clk 0:00:23]} 52. Be1 {[%clk 0:00:02]}  Be7 {[%clk 0:00:22]} 53. Bf2 {[%clk 0:00:01]}  c5 {[%clk 0:00:23]} 54. Kc3 {[%clk 0:00:02]}  c4 {[%clk 0:00:23]} 55. Be1 {[%clk 0:00:02]}  Bc5 {[%clk 0:00:23]} 56. Kc2 {[%clk 0:00:03]}  e4 {[%clk 0:00:22]} 57. fxe4+ {[%clk 0:00:03]}  Kxe4 {[%clk 0:00:23]} 58. Bf2 {[%clk 0:00:04]}  Bxf2 {[%clk 0:00:23]} 0-1


[Site "https://www.chess.com"]

[Event "Titled Tuesday Blitz February 28 Late 2023"]
[White "Golubka, Petro"]
[Black "Deac, Bogdan-Daniel"]
[WhiteFideId "14114224"]
[BlackFideId "1226380"]
[WhiteElo "2404"]
[BlackElo "2649"]
[Result "0-1"]
[Round "09"]
[TimeControl "180+2"]
[Date "2023.02.28"]
[WhiteClock "0:00:14"]
[BlackClock "0:00:03"]

1. e4 {[%clk 0:02:50]}  c6 {[%clk 0:03:00]} 2. Nf3 {[%clk 0:02:38]}  d5 {[%clk 0:03:01]} 3. d3 {[%clk 0:02:39]}  Nd7 {[%clk 0:03:01]} 4. Nc3 {[%clk 0:02:32]}  Ngf6 {[%clk 0:03:00]} 5. e5 {[%clk 0:02:32]}  d4 {[%clk 0:03:00]} 6. Ne2 {[%clk 0:02:22]}  Nxe5 {[%clk 0:03:00]} 7. Nexd4 {[%clk 0:02:22]}  Ng6 {[%clk 0:02:58]} 8. Nb3 {[%clk 0:02:21]}  e5 {[%clk 0:02:58]} 9. Be2 {[%clk 0:02:21]}  Bd6 {[%clk 0:02:57]} 10. O-O {[%clk 0:02:22]}  O-O {[%clk 0:02:58]} 11. a4 {[%clk 0:02:21]}  Nd5 {[%clk 0:02:54]} 12. a5 {[%clk 0:02:14]}  f5 {[%clk 0:02:52]} 13. c3 {[%clk 0:02:14]}  Qf6 {[%clk 0:02:34]} 14. Bg5 {[%clk 0:02:12]}  Qf7 {[%clk 0:02:33]} 15. Bd2 {[%clk 0:02:11]}  Ndf4 {[%clk 0:02:25]} 16. Re1 {[%clk 0:02:08]}  e4 {[%clk 0:02:24]} 17. Nfd4 {[%clk 0:01:59]}  Nh4 {[%clk 0:02:06]} 18. Bxf4 {[%clk 0:01:54]}  Bxf4 {[%clk 0:02:01]} 19. g3 {[%clk 0:01:54]}  Bc7 {[%clk 0:01:52]} 20. Nd2 {[%clk 0:01:34]}  f4 {[%clk 0:00:58]} 21. dxe4 {[%clk 0:00:54]}  Qg6 {[%clk 0:00:53]} 22. e5 {[%clk 0:00:50]}  fxg3 {[%clk 0:00:47]} 23. hxg3 {[%clk 0:00:49]}  Kh8 {[%clk 0:00:35]} 24. Bh5 {[%clk 0:00:48]}  Qg5 {[%clk 0:00:31]} 25. Qe2 {[%clk 0:00:39]}  Nf5 {[%clk 0:00:11]} 26. Ne4 {[%clk 0:00:35]}  Qe7 {[%clk 0:00:11]} 27. f4 {[%clk 0:00:25]}  Nxd4 {[%clk 0:00:07]} 28. cxd4 {[%clk 0:00:26]}  Bf5 {[%clk 0:00:08]} 29. Bf3 {[%clk 0:00:18]}  Qb4 {[%clk 0:00:07]} 30. Qf2 {[%clk 0:00:18]}  Rad8 {[%clk 0:00:07]} 31. Red1 {[%clk 0:00:17]}  Bxa5 {[%clk 0:00:07]} 32. Kg2 {[%clk 0:00:15]}  Bb6 {[%clk 0:00:07]} 33. Nc5 {[%clk 0:00:15]}  Bc8 {[%clk 0:00:03]} 34. Be4 {[%clk 0:00:14]}  Bxc5 {[%clk 0:00:03]} 35. dxc5 {[%clk 0:00:14]}  Qxe4+ {[%clk 0:00:03]} 0-1


[Site "https://www.chess.com"]

[Event "Titled Tuesday Blitz February 28 Late 2023"]
[White "Nasuta, Grzegorz"]
[Black "Sjugirov, Sanan"]
[WhiteFideId "1141686"]
[BlackFideId "4189302"]
[WhiteElo "2449"]
[BlackElo "2569"]
[Result "0-1"]
[Round "09"]
[TimeControl "180+2"]
[Date "2023.02.28"]
[WhiteClock "0:00:10"]
[BlackClock "0:00:08"]

1. e4 {[%clk 0:03:00]}  d6 {[%clk 0:02:57]} 2. d4 {[%clk 0:03:01]}  Nf6 {[%clk 0:02:58]} 3. Nc3 {[%clk 0:03:01]}  e5 {[%clk 0:02:58]} 4. Nf3 {[%clk 0:03:01]}  Nbd7 {[%clk 0:02:58]} 5. Rg1 {[%clk 0:03:01]}  c6 {[%clk 0:02:49]} 6. g4 {[%clk 0:03:01]}  h6 {[%clk 0:02:50]} 7. h4 {[%clk 0:02:59]}  exd4 {[%clk 0:02:49]} 8. Nxd4 {[%clk 0:02:58]}  Ne5 {[%clk 0:02:49]} 9. Be2 {[%clk 0:02:55]}  d5 {[%clk 0:02:46]} 10. Bf4 {[%clk 0:02:16]}  Ng6 {[%clk 0:02:41]} 11. Bg3 {[%clk 0:02:17]}  Nxe4 {[%clk 0:02:16]} 12. Nxe4 {[%clk 0:02:16]}  dxe4 {[%clk 0:02:17]} 13. h5 {[%clk 0:02:09]}  Ne5 {[%clk 0:02:15]} 14. Bxe5 {[%clk 0:02:08]}  Qa5+ {[%clk 0:02:15]} 15. Qd2 {[%clk 0:02:09]}  Qxe5 {[%clk 0:02:16]} 16. O-O-O {[%clk 0:02:09]}  Be7 {[%clk 0:02:09]} 17. Kb1 {[%clk 0:02:01]}  Bf6 {[%clk 0:01:58]} 18. c3 {[%clk 0:01:58]}  O-O {[%clk 0:01:28]} 19. Bc4 {[%clk 0:01:58]}  Qe7 {[%clk 0:01:17]} 20. Qe2 {[%clk 0:01:55]}  Rd8 {[%clk 0:01:08]} 21. Bb3 {[%clk 0:01:48]}  a5 {[%clk 0:01:00]} 22. Bc2 {[%clk 0:01:45]}  Re8 {[%clk 0:00:53]} 23. Rde1 {[%clk 0:01:38]}  Bxd4 {[%clk 0:00:45]} 24. cxd4 {[%clk 0:01:39]}  Qf6 {[%clk 0:00:40]} 25. Bxe4 {[%clk 0:01:37]}  Be6 {[%clk 0:00:40]} 26. d5 {[%clk 0:00:51]}  Bxd5 {[%clk 0:00:33]} 27. Qc2 {[%clk 0:00:28]}  Bxe4 {[%clk 0:00:30]} 28. Rxe4 {[%clk 0:00:29]}  Rxe4 {[%clk 0:00:30]} 29. Qxe4 {[%clk 0:00:30]}  Qxf2 {[%clk 0:00:30]} 30. Rd1 {[%clk 0:00:30]}  Qf6 {[%clk 0:00:27]} 31. Rd7 {[%clk 0:00:20]}  Rd8 {[%clk 0:00:26]} 32. Rxb7 {[%clk 0:00:20]}  Qf1+ {[%clk 0:00:23]} 33. Kc2 {[%clk 0:00:20]}  Qd1+ {[%clk 0:00:23]} 34. Kc3 {[%clk 0:00:21]}  Qd2+ {[%clk 0:00:21]} 35. Kc4 {[%clk 0:00:20]}  a4 {[%clk 0:00:09]} 36. Kc5 {[%clk 0:00:13]}  Qa5+ {[%clk 0:00:08]} 37. Kc4 {[%clk 0:00:12]}  Qa6+ {[%clk 0:00:08]} 38. Kc3 {[%clk 0:00:10]}  Qxb7 {[%clk 0:00:08]} 0-1


[Site "https://www.chess.com"]

[Event "Titled Tuesday Blitz February 28 Late 2023"]
[White "Madaminov, Mukhiddin"]
[Black "Bilych, Olexiy"]
[WhiteFideId "14210703"]
[BlackFideId "14156504"]
[WhiteElo "2511"]
[BlackElo "2320"]
[Result "1-0"]
[Round "09"]
[TimeControl "180+2"]
[Date "2023.02.28"]
[WhiteClock "0:00:36"]
[BlackClock "0:00:07"]

1. d4 {[%clk 0:03:00]}  d5 {[%clk 0:02:58]} 2. Nc3 {[%clk 0:03:00]}  Nf6 {[%clk 0:02:57]} 3. Bf4 {[%clk 0:02:59]}  c5 {[%clk 0:02:58]} 4. e4 {[%clk 0:02:59]}  cxd4 {[%clk 0:02:58]} 5. Qxd4 {[%clk 0:03:00]}  Nc6 {[%clk 0:02:28]} 6. Bb5 {[%clk 0:02:58]}  Bd7 {[%clk 0:02:28]} 7. Bxc6 {[%clk 0:02:56]}  Bxc6 {[%clk 0:02:29]} 8. e5 {[%clk 0:02:56]}  Nd7 {[%clk 0:02:30]} 9. e6 {[%clk 0:02:55]}  fxe6 {[%clk 0:02:30]} 10. Nf3 {[%clk 0:02:56]}  Qb6 {[%clk 0:02:27]} 11. Qd2 {[%clk 0:02:56]}  d4 {[%clk 0:02:25]} 12. Qxd4 {[%clk 0:02:57]}  Bxf3 {[%clk 0:02:20]} 13. Qxb6 {[%clk 0:02:57]}  axb6 {[%clk 0:02:09]} 14. gxf3 {[%clk 0:02:57]}  g6 {[%clk 0:02:05]} 15. O-O-O {[%clk 0:02:57]}  Bg7 {[%clk 0:02:04]} 16. Nb5 {[%clk 0:02:58]}  Rd8 {[%clk 0:01:51]} 17. Rhe1 {[%clk 0:02:47]}  e5 {[%clk 0:01:44]} 18. Be3 {[%clk 0:02:48]}  Rc8 {[%clk 0:01:28]} 19. Rd3 {[%clk 0:02:23]}  Nc5 {[%clk 0:01:23]} 20. Bxc5 {[%clk 0:02:22]}  Rxc5 {[%clk 0:01:22]} 21. Nc3 {[%clk 0:02:23]}  O-O {[%clk 0:01:14]} 22. Ne4 {[%clk 0:02:21]}  Rc7 {[%clk 0:01:14]} 23. c3 {[%clk 0:02:19]}  Rf4 {[%clk 0:01:08]} 24. h3 {[%clk 0:02:19]}  Rh4 {[%clk 0:01:06]} 25. Rh1 {[%clk 0:02:19]}  Bh6+ {[%clk 0:01:04]} 26. Kd1 {[%clk 0:02:15]}  Kf7 {[%clk 0:01:04]} 27. Ke2 {[%clk 0:02:16]}  Ke6 {[%clk 0:01:00]} 28. Kf1 {[%clk 0:02:16]}  Rf4 {[%clk 0:00:59]} 29. Kg2 {[%clk 0:02:15]}  Rf8 {[%clk 0:00:59]} 30. Rhd1 {[%clk 0:02:11]}  Ra8 {[%clk 0:00:55]} 31. a3 {[%clk 0:02:12]}  Bf4 {[%clk 0:00:53]} 32. Rd5 {[%clk 0:02:11]}  h5 {[%clk 0:00:43]} 33. Kf1 {[%clk 0:02:03]}  g5 {[%clk 0:00:43]} 34. Ke2 {[%clk 0:02:02]}  Rg8 {[%clk 0:00:39]} 35. Rb5 {[%clk 0:01:57]}  Rc6 {[%clk 0:00:38]} 36. Rg1 {[%clk 0:01:57]}  Kf5 {[%clk 0:00:36]} 37. Rb4 {[%clk 0:01:48]}  g4 {[%clk 0:00:29]} 38. hxg4+ {[%clk 0:01:48]}  hxg4 {[%clk 0:00:29]} 39. Rxg4 {[%clk 0:01:49]}  Rxg4 {[%clk 0:00:29]} 40. fxg4+ {[%clk 0:01:50]}  Kxg4 {[%clk 0:00:28]} 41. Nd2 {[%clk 0:01:46]}  Kf5 {[%clk 0:00:25]} 42. Nc4 {[%clk 0:01:46]}  b5 {[%clk 0:00:25]} 43. Na5 {[%clk 0:01:46]}  Rd6 {[%clk 0:00:26]} 44. Rxb5 {[%clk 0:01:09]}  Rd2+ {[%clk 0:00:25]} 45. Ke1 {[%clk 0:01:10]}  Rc2 {[%clk 0:00:23]} 46. Nc4 {[%clk 0:01:06]}  Ke4 {[%clk 0:00:20]} 47. Ne3 {[%clk 0:00:37]}  Rc1+ {[%clk 0:00:13]} 48. Kd2 {[%clk 0:00:36]}  Rh1 {[%clk 0:00:12]} 49. Ke2 {[%clk 0:00:36]}  Rh2 {[%clk 0:00:07]} 50. Rb4# {[%clk 0:00:36]} 1-0


[Site "https://www.chess.com"]

[Event "Titled Tuesday Blitz February 28 Late 2023"]
[White "Holt, Conrad"]
[Black "Averjanov, Alexey"]
[WhiteFideId "2034387"]
[BlackFideId "14109867"]
[WhiteElo "2592"]
[BlackElo "2676"]
[Result "1/2-1/2"]
[Round "09"]
[TimeControl "180+2"]
[Date "2023.02.28"]
[WhiteClock "0:00:02"]
[BlackClock "0:00:04"]

1. d4 {[%clk 0:03:00]}  d5 {[%clk 0:03:00]} 2. c4 {[%clk 0:03:01]}  dxc4 {[%clk 0:03:00]} 3. e3 {[%clk 0:03:01]}  Nf6 {[%clk 0:03:00]} 4. Bxc4 {[%clk 0:03:01]}  e6 {[%clk 0:03:01]} 5. Nf3 {[%clk 0:03:01]}  a6 {[%clk 0:03:01]} 6. O-O {[%clk 0:02:59]}  b5 {[%clk 0:03:00]} 7. Bb3 {[%clk 0:02:54]}  Bb7 {[%clk 0:03:01]} 8. Qe2 {[%clk 0:02:52]}  Nbd7 {[%clk 0:03:01]} 9. Rd1 {[%clk 0:02:52]}  c5 {[%clk 0:03:01]} 10. e4 {[%clk 0:02:46]}  cxd4 {[%clk 0:03:00]} 11. e5 {[%clk 0:02:40]}  Nd5 {[%clk 0:03:00]} 12. Nxd4 {[%clk 0:02:38]}  Be7 {[%clk 0:02:52]} 13. Bxd5 {[%clk 0:02:21]}  Bxd5 {[%clk 0:02:50]} 14. Nc3 {[%clk 0:02:21]}  Nb6 {[%clk 0:02:41]} 15. Qg4 {[%clk 0:02:19]}  g6 {[%clk 0:02:39]} 16. Bh6 {[%clk 0:02:17]}  Qd7 {[%clk 0:02:30]} 17. Rac1 {[%clk 0:02:13]}  Qb7 {[%clk 0:02:21]} 18. Nxd5 {[%clk 0:01:54]}  Nxd5 {[%clk 0:02:22]} 19. Nxe6 {[%clk 0:01:47]}  fxe6 {[%clk 0:02:06]} 20. Qxe6 {[%clk 0:01:46]}  Rd8 {[%clk 0:01:59]} 21. g3 {[%clk 0:01:20]}  Qd7 {[%clk 0:01:37]} 22. Qxa6 {[%clk 0:01:20]}  Kf7 {[%clk 0:01:33]} 23. Rc6 {[%clk 0:00:55]}  Qf5 {[%clk 0:01:14]} 24. e6+ {[%clk 0:00:54]}  Kf6 {[%clk 0:01:13]} 25. Qxb5 {[%clk 0:00:25]}  Ne3 {[%clk 0:01:05]} 26. Qxf5+ {[%clk 0:00:17]}  Nxf5 {[%clk 0:01:02]} 27. Rxd8 {[%clk 0:00:18]}  Rxd8 {[%clk 0:01:02]} 28. Bf4 {[%clk 0:00:14]}  g5 {[%clk 0:00:58]} 29. Bc1 {[%clk 0:00:14]}  Rd1+ {[%clk 0:00:55]} 30. Kg2 {[%clk 0:00:15]}  g4 {[%clk 0:00:55]} 31. Rc4 {[%clk 0:00:14]}  h5 {[%clk 0:00:54]} 32. h3 {[%clk 0:00:14]}  Nd4 {[%clk 0:00:45]} 33. hxg4 {[%clk 0:00:12]}  hxg4 {[%clk 0:00:46]} 34. Be3 {[%clk 0:00:12]}  Ke5 {[%clk 0:00:36]} 35. a4 {[%clk 0:00:11]}  Kd5 {[%clk 0:00:27]} 36. Rc7 {[%clk 0:00:09]}  Nf3 {[%clk 0:00:25]} 37. Rc1 {[%clk 0:00:09]}  Rxc1 {[%clk 0:00:20]} 38. Bxc1 {[%clk 0:00:10]}  Kxe6 {[%clk 0:00:21]} 39. Kf1 {[%clk 0:00:10]}  Kd5 {[%clk 0:00:20]} 40. Ke2 {[%clk 0:00:10]}  Bc5 {[%clk 0:00:19]} 41. Be3 {[%clk 0:00:10]}  Bb4 {[%clk 0:00:20]} 42. Kd3 {[%clk 0:00:10]}  Ne5+ {[%clk 0:00:19]} 43. Kc2 {[%clk 0:00:10]}  Nf3 {[%clk 0:00:18]} 44. Kb3 {[%clk 0:00:10]}  Ba5 {[%clk 0:00:18]} 45. Ka3 {[%clk 0:00:10]}  Kc4 {[%clk 0:00:18]} 46. b3+ {[%clk 0:00:11]}  Kc3 {[%clk 0:00:18]} 47. Bc5 {[%clk 0:00:11]}  Nd4 {[%clk 0:00:16]} 48. b4 {[%clk 0:00:10]}  Nc2+ {[%clk 0:00:15]} 49. Ka2 {[%clk 0:00:10]}  Nxb4+ {[%clk 0:00:15]} 50. Kb1 {[%clk 0:00:11]}  Nd3 {[%clk 0:00:15]} 51. Be3 {[%clk 0:00:11]}  Kb3 {[%clk 0:00:15]} 52. Bd4 {[%clk 0:00:10]}  Be1 {[%clk 0:00:15]} 53. a5 {[%clk 0:00:10]}  Bxa5 {[%clk 0:00:15]} 54. f4 {[%clk 0:00:04]}  gxf3 {[%clk 0:00:14]} 55. g4 {[%clk 0:00:05]}  Bd2 {[%clk 0:00:11]} 56. Bg1 {[%clk 0:00:04]}  Bg5 {[%clk 0:00:09]} 57. Bd4 {[%clk 0:00:04]}  Bh4 {[%clk 0:00:08]} 58. Be3 {[%clk 0:00:04]}  Bg5 {[%clk 0:00:08]} 59. Bg1 {[%clk 0:00:04]}  Kc3 {[%clk 0:00:07]} 60. Ba7 {[%clk 0:00:04]}  Kc4 {[%clk 0:00:06]} 61. Kc2 {[%clk 0:00:04]}  Nc5 {[%clk 0:00:05]} 62. Kd1 {[%clk 0:00:02]}  Ne4 {[%clk 0:00:04]} 63. Ke1 {[%clk 0:00:02]}  Nf6 {[%clk 0:00:04]} 64. Kf2 {[%clk 0:00:02]}  Nxg4+ {[%clk 0:00:03]} 65. Kxf3 {[%clk 0:00:02]}  Nf6 {[%clk 0:00:04]} 66. Be3 {[%clk 0:00:01]}  Kd5 {[%clk 0:00:04]} 67. Bxg5 {[%clk 0:00:02]} 1/2-1/2


[Site "https://www.chess.com"]

[Event "Titled Tuesday Blitz February 28 Late 2023"]
[White "Fiorito, Francisco"]
[Black "Pakleza, Zbigniew"]
[WhiteFideId "180165"]
[BlackFideId "1119290"]
[WhiteElo "2341"]
[BlackElo "2410"]
[Result "1-0"]
[Round "09"]
[TimeControl "180+2"]
[Date "2023.02.28"]
[WhiteClock "0:00:20"]
[BlackClock "0:00:01"]

1. d4 {[%clk 0:03:00]}  d6 {[%clk 0:02:59]} 2. e4 {[%clk 0:02:57]}  Nf6 {[%clk 0:02:59]} 3. Nc3 {[%clk 0:02:57]}  c6 {[%clk 0:02:59]} 4. Be3 {[%clk 0:02:56]}  Qb6 {[%clk 0:02:59]} 5. Rb1 {[%clk 0:02:47]}  Ng4 {[%clk 0:02:58]} 6. Bg5 {[%clk 0:02:25]}  e5 {[%clk 0:02:55]} 7. Nf3 {[%clk 0:02:15]}  Nd7 {[%clk 0:02:52]} 8. h3 {[%clk 0:02:11]}  Ngf6 {[%clk 0:02:52]} 9. Bc4 {[%clk 0:02:06]}  Be7 {[%clk 0:02:51]} 10. O-O {[%clk 0:02:05]}  O-O {[%clk 0:02:50]} 11. Re1 {[%clk 0:02:03]}  Re8 {[%clk 0:02:43]} 12. Bb3 {[%clk 0:02:03]}  Qc7 {[%clk 0:02:37]} 13. Qd2 {[%clk 0:01:59]}  Nf8 {[%clk 0:02:34]} 14. Rbd1 {[%clk 0:01:57]}  b5 {[%clk 0:02:27]} 15. a3 {[%clk 0:01:57]}  a6 {[%clk 0:02:25]} 16. Ba2 {[%clk 0:01:46]}  Ng6 {[%clk 0:02:21]} 17. d5 {[%clk 0:01:21]}  c5 {[%clk 0:02:17]} 18. Qe3 {[%clk 0:01:11]}  h6 {[%clk 0:02:13]} 19. Bxf6 {[%clk 0:01:11]}  Bxf6 {[%clk 0:02:13]} 20. Ne2 {[%clk 0:01:11]}  c4 {[%clk 0:02:04]} 21. Ng3 {[%clk 0:01:10]}  Nf4 {[%clk 0:01:55]} 22. Bb1 {[%clk 0:01:06]}  g6 {[%clk 0:01:30]} 23. c3 {[%clk 0:01:04]}  h5 {[%clk 0:01:27]} 24. Ne2 {[%clk 0:01:04]}  Nxe2+ {[%clk 0:01:21]} 25. Qxe2 {[%clk 0:01:04]}  Kg7 {[%clk 0:01:14]} 26. Qe3 {[%clk 0:00:58]}  Qb7 {[%clk 0:01:11]} 27. Rf1 {[%clk 0:00:53]}  Bd8 {[%clk 0:01:10]} 28. Nh2 {[%clk 0:00:51]}  Bb6 {[%clk 0:01:09]} 29. Qg3 {[%clk 0:00:50]}  Qe7 {[%clk 0:01:09]} 30. Kh1 {[%clk 0:00:50]}  Bd7 {[%clk 0:01:02]} 31. f4 {[%clk 0:00:50]}  exf4 {[%clk 0:00:54]} 32. Rxf4 {[%clk 0:00:50]}  Rf8 {[%clk 0:00:45]} 33. Rdf1 {[%clk 0:00:50]}  a5 {[%clk 0:00:36]} 34. Nf3 {[%clk 0:00:41]}  Bd8 {[%clk 0:00:29]} 35. e5 {[%clk 0:00:32]}  Bc7 {[%clk 0:00:18]} 36. e6 {[%clk 0:00:31]}  Be8 {[%clk 0:00:15]} 37. Nd4 {[%clk 0:00:30]}  Kh8 {[%clk 0:00:04]} 38. exf7 {[%clk 0:00:24]}  Bxf7 {[%clk 0:00:05]} 39. Bxg6 {[%clk 0:00:24]}  Bxg6 {[%clk 0:00:01]} 40. Qxg6 {[%clk 0:00:20]}  Rxf4 {[%clk 0:00:01]} 41. Rxf4 {[%clk 0:00:20]} 1-0


[Site "https://www.chess.com"]

[Event "Titled Tuesday Blitz February 28 Late 2023"]
[White "Rozman, Levy"]
[Black "Bjelobrk, Igor"]
[WhiteFideId "2039877"]
[BlackFideId "4300726"]
[WhiteElo "2376"]
[BlackElo "2335"]
[Result "0-1"]
[Round "09"]
[TimeControl "180+2"]
[Date "2023.02.28"]
[WhiteClock "0:00:08"]
[BlackClock "0:00:39"]

1. e4 {[%clk 0:03:00]}  e6 {[%clk 0:02:56]} 2. b3 {[%clk 0:02:57]}  d5 {[%clk 0:02:44]} 3. Bb2 {[%clk 0:02:56]}  c5 {[%clk 0:02:42]} 4. Bb5+ {[%clk 0:02:54]}  Nc6 {[%clk 0:02:38]} 5. exd5 {[%clk 0:02:52]}  exd5 {[%clk 0:02:38]} 6. Nf3 {[%clk 0:02:53]}  Qe7+ {[%clk 0:02:35]} 7. Be2 {[%clk 0:02:49]}  Nf6 {[%clk 0:01:58]} 8. O-O {[%clk 0:02:46]}  Qd8 {[%clk 0:01:55]} 9. d4 {[%clk 0:02:44]}  cxd4 {[%clk 0:01:50]} 10. Bb5 {[%clk 0:02:39]}  Be7 {[%clk 0:01:47]} 11. Nxd4 {[%clk 0:02:33]}  Bd7 {[%clk 0:01:46]} 12. Nf3 {[%clk 0:02:28]}  O-O {[%clk 0:01:44]} 13. Re1 {[%clk 0:02:19]}  Bg4 {[%clk 0:01:42]} 14. Be2 {[%clk 0:02:15]}  Re8 {[%clk 0:01:39]} 15. Nbd2 {[%clk 0:02:10]}  Bc5 {[%clk 0:01:36]} 16. h3 {[%clk 0:01:51]}  Bh5 {[%clk 0:01:36]} 17. Rf1 {[%clk 0:01:33]}  Ne4 {[%clk 0:01:31]} 18. g4 {[%clk 0:01:05]}  Bg6 {[%clk 0:01:30]} 19. Kg2 {[%clk 0:01:05]}  Qe7 {[%clk 0:01:21]} 20. Bd3 {[%clk 0:01:03]}  Rad8 {[%clk 0:01:19]} 21. a3 {[%clk 0:00:58]}  Bb6 {[%clk 0:01:14]} 22. b4 {[%clk 0:00:54]}  a6 {[%clk 0:01:15]} 23. Nb3 {[%clk 0:00:53]}  h5 {[%clk 0:01:04]} 24. Qe2 {[%clk 0:00:45]}  hxg4 {[%clk 0:01:04]} 25. hxg4 {[%clk 0:00:45]}  Qd7 {[%clk 0:01:04]} 26. Nh4 {[%clk 0:00:40]}  Nxf2 {[%clk 0:01:01]} 27. Qf3 {[%clk 0:00:17]}  Re3 {[%clk 0:00:43]} 28. Rxf2 {[%clk 0:00:06]}  Rxf3 {[%clk 0:00:42]} 29. Rxf3 {[%clk 0:00:07]}  Qxg4+ {[%clk 0:00:41]} 30. Rg3 {[%clk 0:00:07]}  Qxh4 {[%clk 0:00:41]} 31. Bxg6 {[%clk 0:00:08]}  fxg6 {[%clk 0:00:41]} 32. Rh1 {[%clk 0:00:08]}  Qe4+ {[%clk 0:00:41]} 33. Kh3 {[%clk 0:00:08]}  Qxh1+ {[%clk 0:00:39]} 0-1


[Site "https://www.chess.com"]